fUSD/lending_fUSD_20250417
["ID","MTS","AMOUNT","RATE_DAILY","PERIOD"]
[358269875,1744885844126,-600.894,0.00045,30]
[358269876,1744885844136,-600.894,0.00045,30]
[358269877,1744885844146,-600.894,0.00045,30]
[358269878,1744885844155,-600.894,0.00045,30]
[358269879,1744885844165,-600.894,0.00045,30]
[358269880,1744885844174,-600.894,0.00045,30]
[358269881,1744885844184,-600.894,0.00045,30]
[358269882,1744885844194,-1240.2,0.00046233,5]
[358269883,1744885844203,-922.61146628,0.00047,14]
[358269884,1744885844212,-203.03970527,0.000485,60]
[358269885,1744885844221,-1238.02,0.00048569,5]
[358269886,1744885844232,-11302.52,0.00049451,5]
[358269887,1744885844242,-2000.0,0.0005,10]
[358269888,1744885844254,-3318.0,0.0005,5]
[358269889,1744885844263,-40642.88,0.0005,30]
[358269890,1744885844272,-1179.761675,0.00050176,22]
[358269891,1744885844281,-1245.52,0.00051039,5]
[358269892,1744885844291,-1266.64,0.0005104,5]
[358269893,1744885844300,-1235.15,0.00051043,5]
[358269894,1744885844309,-1233.86,0.00051053,5]
[358269895,1744885844320,-500.0,0.00051056,30]
[358269896,1744885844330,-500.0,0.00051056,30]
[358269897,1744885844340,-500.0,0.00051056,30]
[358269898,1744885844350,-381.6486,0.00051056,30]
[358269899,1744885844359,-6423.34035564,0.00051076,2]
[358269900,1744885844369,-150.0,0.00051176,30]
[358269901,1744885844379,-150.0,0.00051176,30]
[358269902,1744885844388,-150.0,0.00051176,30]
[358269903,1744885844398,-150.0,0.00051176,30]
[358269904,1744885844408,-150.0,0.00051176,30]
[358269905,1744885844417,-150.0,0.00051176,30]
[358269906,1744885844428,-150.0,0.00051176,30]
[358269907,1744885844438,-150.0,0.00051176,30]
[358269908,1744885844447,-150.0,0.00051176,30]
[358269909,1744885844457,-150.0,0.00051176,30]
[358269910,1744885844467,-150.0,0.00051176,30]
[358269911,1744885844476,-194.5,0.00051176,30]
[358269912,1744885844486,-867.19918816,0.00051176,7]
[358269913,1744885844495,-2501.47934515,0.00051176,2]
[358269914,1744885844504,-198004.99207897,0.00051176,120]
[358269915,1744885844513,-999.999999,0.00051176,2]
[358269916,1744885844522,-7617.32450682,0.00051176,30]
[358269917,1744885844531,-2569.14096367,0.00051176,120]
[358269918,1744885844542,-266.3,0.0005141,2]
[358269919,1744885844551,-6584.1703,0.00051584,2]
[358269920,1744885844561,-1184.9798,0.00051584,2]
[358269921,1744885844570,-1059.66975678,0.00051628,2]
[358269922,1744885844580,-98516.41310057,0.00051684,2]
[358269923,1744885844589,-1000.0,0.00052,120]
[358269924,1744885844598,-693.58394987,0.00052,30]
[358269925,1744885844607,-156.038071,0.00052054,120]
[358269926,1744885844616,-191.71473719,0.00052328,96]
[358269927,1744885844626,-155.296,0.00052328,96]
[358269928,1744885844635,-16629.7132,0.00052402,2]
[358269929,1744885844644,-14515.9358,0.00052402,2]
[358269930,1744885844654,-2452.3774766,0.00052502,15]
[358269931,1744885844663,-156.038071,0.0005315,120]
[358269932,1744885844673,-872.299,0.00053413,2]
[358269933,1744885844682,-21004.50492958,0.00053513,2]
[358269934,1744885844692,-2674.53241681,0.00054049,2]
[358269935,1744885844702,-631.15953974,0.00054391,2]
[358269936,1744885844712,-150.0,0.000545,120]
[358269937,1744885844721,-156.038071,0.0005452,120]
[358269938,1744885844731,-5990.32,0.000546,60]
[358269939,1744885844741,-320.7087,0.00054694,30]
[358269940,1744885844859,-2885.3981,0.00054694,2]
[358269941,1744885844870,-500.0,0.00054794,120]
[358269942,1744885844879,-9600.0,0.00055,120]
[358269943,1744885844889,-156.038071,0.00055342,120]
[358269944,1744885844898,-259.510234,0.0005578,7]
[358269945,1744885844908,-4259.6221,0.0005579,2]
[358269946,1744885844918,-23733.6797,0.0005579,2]
[358269947,1744885844928,-9353.8693,0.0005579,2]
[358269948,1744885844938,-506.74,0.00055889,120]
[358269949,1744885844947,-500.0,0.00055889,120]
[358269950,1744885844959,-500.0,0.00055889,120]
[358269951,1744885844970,-500.0,0.0005589,120]
[358269952,1744885844981,-500.0,0.00056986,120]
[358269953,1744885844990,-499.999999,0.000575,120]
[358269954,1744885845000,-500.0,0.00058082,120]
[358269955,1744885845010,-500.0,0.00059178,120]
[358269956,1744885845020,-447.95,0.00059792,30]
[358269957,1744885845029,-160.65,0.00059792,30]
[358269958,1744885845039,-150.0,0.00059792,30]
[358269959,1744885845048,-210.39,0.00059792,30]
[358269960,1744885845058,-440.59,0.00059792,30]
[358269961,1744885845068,-160.65,0.00059792,30]
[358269962,1744885845078,-196.83,0.00059792,30]
[358269963,1744885845087,-150.0,0.00059792,30]
[358269964,1744885845097,-349.81,0.00059792,30]
[358269965,1744885845107,-150.0,0.00059792,30]
[358269966,1744885845116,-160.65,0.00059792,30]
[358269967,1744885845126,-150.0,0.00059792,30]
[358269968,1744885845136,-349.81,0.00059792,30]
[358269969,1744885845145,-160.65,0.00059792,30]
[358269970,1744885845156,-150.0,0.00059792,30]
[358269971,1744885845165,-349.81,0.00059792,30]
[358269972,1744885845175,-160.65,0.00059792,30]
[358269973,1744885845184,-150.0,0.00059792,30]
[358269974,1744885845194,-150.0,0.00059792,30]
[358269975,1744885845203,-160.65,0.00059792,30]
[358269976,1744885845213,-150.0,0.00059792,30]
[358269977,1744885845223,-160.65,0.00059792,30]
[358269978,1744885845232,-150.0,0.00059792,30]
[358269979,1744885845244,-160.65,0.00059792,30]
[358269980,1744885845254,-150.0,0.00059792,30]
[358269981,1744885845263,-160.65,0.00059792,30]
[358269982,1744885845273,-150.0,0.00059792,30]
[358269983,1744885845284,-500.0,0.00060273,120]
[358269984,1744885845294,-557.15701474,0.00061369,120]
[358269985,1744885845303,-150.0,0.000681,120]
[358269986,1744885845317,-150.0,0.000681,120]
[358269987,1744885845327,-298.049999,0.000691,120]
[358269988,1744885845337,-150.0,0.000691,120]
[358269989,1744885845347,-10023.9279731,0.000699,120]
[358269990,1744885845357,-150.0,0.000701,120]
[358269991,1744885845367,-150.0,0.000711,120]
[358269992,1744885845376,-155.297,0.00071552,120]
[358269993,1744885845386,-5990.32,0.000716,60]
[358269994,1744885845396,-150.0,0.000721,120]
[358269995,1744885845405,-150.0,0.000731,120]
[358269996,1744885845415,-150.0,0.000741,120]
[358269997,1744885845424,-150.0,0.000751,120]
[358269998,1744885845434,-150.0,0.000761,120]
[358269999,1744885845444,-150.0,0.000771,120]
[358270000,1744885845453,-150.0,0.000781,120]
[358270001,1744885845463,-1000.0,0.00079083,120]
[358270002,1744885845472,-150.0,0.000791,120]
[358270003,1744885845482,-428.99505414,0.00079885,120]
[358270004,1744885845492,-194.5,0.000801,120]
[358270005,1744885845501,-5000.0,0.0008879,120]
[358270006,1744885845511,-1000.0,0.00088968,120]
[358270007,1744885845521,-500.0,0.0009,2]
[358270008,1744885845530,-155.297,0.00090776,120]
[358270009,1744885845540,-7503.96818,0.00096956,119]
[358270010,1744885845550,-1000.0,0.00098854,120]
[358270011,1744885845559,-1000.0,0.00108739,120]
[358270012,1744885845569,-155.297,0.0011,120]
[358270013,1744885845580,-1000.0,0.00118624,120]
[358270014,1744885845590,-413.77476,0.00139726,2]
[358270015,1744885845601,-413.77476,0.00139726,2]
[358270016,1744885845611,-413.77476,0.00139726,2]
[358270018,1744885845622,-413.77476,0.00139726,2]
[358270019,1744885845632,-413.77476,0.00139726,2]
[358270021,1744885845642,-413.77476,0.00139726,2]
[358270023,1744885845652,-413.77476,0.00139726,2]
[358270025,1744885845662,-413.77476,0.00139726,2]
[358270027,1744885845672,-413.77476,0.00139726,2]
[358270029,1744885845681,-413.77476,0.00139726,2]
[358270031,1744885845691,-413.77476,0.00139726,2]
[358270032,1744885845701,-413.77476,0.00139726,2]
[358270033,1744885845711,-413.77476,0.00139726,2]
[358270034,1744885845721,-413.77476,0.00139726,2]
[358270035,1744885845731,-413.77476,0.00139726,2]
[358270036,1744885845741,-413.77476,0.00139726,2]
[358270037,1744885845752,-413.77476,0.00139726,2]
[358270038,1744885845763,-413.77476,0.00139726,2]
[358270039,1744885845773,-413.77476,0.00139726,2]
[358270040,1744885845783,-151.0,0.00139726,120]
[358270041,1744885845793,-151.0,0.00139726,120]
[358270042,1744885845803,-151.0,0.00139726,120]
[358270043,1744885845812,-151.0,0.00139726,120]
[358270044,1744885845822,-151.0,0.00139726,120]
[358270045,1744885845833,-151.0,0.00139726,120]
[358270046,1744885845843,-151.0,0.00139726,120]
[358270047,1744885845853,-151.0,0.00139726,120]
[358270048,1744885845863,-220.754072,0.00139726,120]
[358270049,1744885845873,-151.0,0.00139726,120]
[358270050,1744885845883,-152.217092,0.00139726,120]
[358270051,1744885845893,-151.0,0.00139726,120]
[358270052,1744885845903,-151.0,0.00139726,120]
[358270053,1744885845913,-151.0,0.00139726,120]
[358270054,1744885845922,-151.0,0.00139726,120]
[358270055,1744885845932,-151.0,0.00139726,120]
[358270056,1744885845942,-151.0,0.00139726,120]
[358270057,1744885845951,-151.0,0.00139726,120]
[358270058,1744885845962,-151.0,0.00139726,120]
[358270059,1744885845972,-151.0,0.00139726,120]
[358270060,1744885845981,-151.0,0.00139726,120]
[358270061,1744885845995,-151.0,0.00139726,120]
[358270062,1744885846004,-151.0,0.00139726,120]
[358270063,1744885846014,-151.0,0.00139726,120]
[358270064,1744885846024,-151.0,0.00139726,120]
[358270065,1744885846034,-280.175705,0.00139726,120]
[358270066,1744885846043,-151.0,0.00139726,120]
[358270067,1744885846053,-151.0,0.00139726,120]
[358270068,1744885846063,-151.0,0.00139726,120]
[358270070,1744885846072,-151.0,0.00139726,120]
[358270071,1744885846082,-151.0,0.00139726,120]
[358270072,1744885846091,-151.0,0.00139726,120]
[358270073,1744885846100,-151.0,0.00139726,120]
[358270074,1744885846111,-151.0,0.00139726,120]
[358270075,1744885846121,-151.0,0.00139726,120]
[358270076,1744885846131,-151.0,0.00139726,120]
[358270077,1744885846140,-151.0,0.00139726,120]
[358270078,1744885846150,-151.0,0.00139726,120]
[358270079,1744885846159,-151.0,0.00139726,120]
[358270080,1744885846171,-151.0,0.00139726,120]
[358270081,1744885846182,-151.0,0.00139726,120]
[358270082,1744885846191,-151.0,0.00139726,120]
[358270083,1744885846201,-151.0,0.00139726,120]
[358270084,1744885846210,-151.0,0.00139726,120]
[358270085,1744885846220,-151.0,0.00139726,120]
[358270086,1744885846230,-230.274232,0.00139726,120]
[358270088,1744885846241,-151.0,0.00139726,120]
[358270090,1744885846253,-164.287058,0.00139726,120]
[358270091,1744885846263,-575.21109322,0.00190817,60]
[358270092,1744885846273,-150.0,0.00191654,120]
[358270093,1744885846283,-47559.7074808,0.00194387,60]
[358270094,1744885846293,-169.17,0.0019726,120]
[358270095,1744885846302,-169.17,0.0019726,120]
[358270096,1744885846312,-152.0,0.00243646,2]
[358270097,1744885846321,-152.0,0.00243646,120]
[358270098,1744885846332,-3965.0,0.00243646,120]
[358270099,1744885846342,-1288.0,0.00243646,120]
[358270100,1744885846351,-364.0,0.00243646,120]
[358270101,1744885846360,-2390.11206959,0.0024707,120]
[358270102,1744885846370,-339.788,0.00247078,120]
[358270103,1744885846379,-500.0,0.00273972,120]
[358270104,1744885846389,-500.0,0.00273972,120]
[358270105,1744885846398,-500.0,0.00273972,120]
[358270106,1744885846408,-500.0,0.00273972,120]
[358270107,1744885846418,-500.0,0.00273972,120]
[358270108,1744885846428,-500.0,0.00273972,120]
[358270109,1744885846438,-500.0,0.00273972,120]
[358270110,1744885846448,-500.0,0.00273972,120]
[358270111,1744885846458,-500.0,0.00273972,120]
[358270112,1744885846468,-500.0,0.00273972,120]
[358270113,1744885846479,-500.0,0.00273972,120]
[358270114,1744885846489,-500.0,0.00273972,120]
[358270115,1744885846499,-500.0,0.00273972,120]
[358270116,1744885846508,-500.0,0.00273972,120]
[358270117,1744885846519,-500.0,0.00273972,120]
[358270118,1744885846529,-500.0,0.00273972,120]
[358270119,1744885846539,-500.0,0.00273972,120]
[358270121,1744885846550,-500.0,0.00273972,120]
[358270122,1744885846560,-500.0,0.00273972,120]
[358270123,1744885846570,-500.0,0.00273972,120]
[358270124,1744885846578,-541.93693452,0.00273972,120]
[358270125,1744885846587,-500.0,0.00273972,120]
[358270126,1744885846597,-500.0,0.00273972,120]
[358270127,1744885846607,-500.0,0.00273972,120]
[358270128,1744885846616,-500.0,0.00273972,120]
[358270129,1744885846626,-500.0,0.00273972,120]
[358270130,1744885846635,-500.0,0.00273972,120]
[358270131,1744885846645,-500.0,0.00273972,120]
[358270132,1744885846654,-500.0,0.00273972,120]
[358270133,1744885846664,-500.0,0.00273972,120]
[358270134,1744885846674,-500.0,0.00273972,120]
[358270135,1744885846683,-500.0,0.00273972,120]
[358270136,1744885846692,-500.0,0.00273972,120]
[358270137,1744885846701,-500.0,0.00273972,120]
[358270138,1744885846711,-500.0,0.00273972,120]
[358270139,1744885846721,-500.0,0.00273972,120]
[358270140,1744885846731,-500.0,0.00273972,120]
[358270141,1744885846740,-500.0,0.00273972,30]
[358270142,1744885846750,-505.77665128,0.00273972,120]
[358270143,1744885846760,-500.0,0.00273972,120]
[358270144,1744885846770,-500.0,0.00273972,120]
[358270145,1744885846779,-500.0,0.00273972,120]
[358270146,1744885846790,-376.50105532,0.00273972,120]
[358270147,1744885846800,-500.0,0.00273972,120]
[358270148,1744885846809,-500.0,0.00273972,120]
[358270149,1744885846819,-599.72853609,0.00273972,120]
[358270150,1744885846828,-595.19797451,0.00273972,120]
[358270151,1744885846837,-500.0,0.00273972,120]
[358270152,1744885846847,-500.0,0.00273972,120]
[358270153,1744885846856,-500.0,0.00273972,120]
[358270154,1744885846865,-500.0,0.00273972,120]
[358270155,1744885846875,-500.0,0.00273972,120]
[358270156,1744885846884,-500.0,0.00273972,120]
[358270157,1744885846893,-500.0,0.00273972,120]
[358270158,1744885846902,-359.54504944,0.00273972,120]
[358270159,1744885846912,-500.0,0.00273972,120]
[358270160,1744885846921,-500.0,0.00273972,120]
[358270161,1744885846930,-152.83969796,0.00273972,120]
[358270162,1744885846939,-500.0,0.00273972,120]
[358270163,1744885846949,-500.0,0.00273972,120]
[358270164,1744885846957,-500.0,0.00273972,120]
[358270165,1744885846966,-1295.94,0.00273972,7]
[358270166,1744885846976,-500.0,0.00273972,120]
[358270167,1744885846985,-500.0,0.00273972,120]
[358270168,1744885846994,-161.90073423,0.00273972,120]
[358270169,1744885847003,-584.08,0.00273972,120]
[358270170,1744885847012,-1048.81,0.00273972,120]
[358270171,1744885847022,-500.0,0.00273972,120]
[358270172,1744885847032,-500.0,0.00273972,120]
[358270173,1744885847047,-500.0,0.00273972,120]
[358270174,1744885847058,-500.0,0.00273972,120]
[358270175,1744885847068,-500.0,0.00273972,120]
[358270176,1744885847078,-831.25,0.00273972,120]
[358270177,1744885847088,-500.0,0.00273972,120]
[358270178,1744885847099,-515.52,0.00273972,120]
[358270179,1744885847110,-500.0,0.00273972,120]
[358270180,1744885847121,-500.0,0.00273972,120]
[358270181,1744885847131,-500.0,0.00273972,120]
[358270182,1744885847141,-525.0,0.00273972,120]
[358270183,1744885847151,-500.0,0.00273972,120]
[358270184,1744885847160,-500.0,0.00273972,120]
[358270185,1744885847170,-500.0,0.00273972,120]
[358270186,1744885847180,-500.0,0.00273972,120]
[358270187,1744885847190,-500.0,0.00273972,120]
[358270188,1744885847200,-500.0,0.00273972,14]
[358270189,1744885847210,-500.0,0.00273972,120]
[358270190,1744885847220,-500.0,0.00273972,120]
[358270191,1744885847229,-500.0,0.00273972,120]
[358270192,1744885847238,-500.0,0.00273972,120]
[358270193,1744885847252,-500.0,0.00273972,120]
[358270194,1744885847261,-500.0,0.00273972,120]
[358270195,1744885847270,-500.0,0.00273972,120]
[358270196,1744885847279,-500.0,0.00273972,120]
[358270197,1744885847291,-500.0,0.00273972,120]
[358270198,1744885847301,-500.0,0.00273972,120]
[358270199,1744885847313,-464.34969705,0.00273972,120]
[358270200,1744885847325,-194.06844707,0.00273972,120]
[358270201,1744885847336,-500.0,0.00273972,120]
[358270202,1744885847346,-500.0,0.00273972,120]
[358270203,1744885847357,-500.0,0.00273972,120]
[358270204,1744885847378,-500.0,0.00273972,120]
[358270205,1744885847387,-500.0,0.00273972,120]
[358270206,1744885847448,-500.0,0.00273972,120]
[358270207,1744885847458,-500.0,0.00273972,120]
[358270208,1744885847468,-500.0,0.00273972,120]
[358270209,1744885847478,-500.0,0.00273972,120]
[358270210,1744885847488,-500.0,0.00273972,120]
[358270211,1744885847498,-500.0,0.00273972,120]
[358270212,1744885847507,-500.0,0.00273972,120]
[358270213,1744885847517,-392.527066,0.00273972,120]
[358270214,1744885847527,-500.0,0.00273972,120]
[358270215,1744885847537,-500.0,0.00273972,120]
[358270216,1744885847547,-500.0,0.00273972,120]
[358270217,1744885847556,-500.0,0.00273972,120]
[358270218,1744885847566,-500.0,0.00273972,120]
[358270219,1744885847576,-500.0,0.00273972,120]
[358270220,1744885847586,-500.0,0.00273972,120]
[358270221,1744885847595,-500.0,0.00273972,120]
[358270222,1744885847604,-179.39370182,0.00273972,5]
[358270223,1744885847613,-500.0,0.00273972,120]
[358270224,1744885847622,-500.0,0.00273972,2]
[358270225,1744885847632,-500.0,0.00273972,120]
[358270226,1744885847641,-500.0,0.00273972,120]
[358270227,1744885847651,-500.0,0.00273972,120]
[358270228,1744885847661,-500.0,0.00273972,120]
[358270229,1744885847671,-500.0,0.00273972,120]
[358270230,1744885847681,-500.0,0.00273972,120]
[358270231,1744885847691,-500.0,0.00273972,120]
[358270232,1744885847702,-500.0,0.00273972,120]
[358270233,1744885847712,-500.0,0.00273972,120]
[358270234,1744885847722,-2000.0,0.00273972,120]
[358270235,1744885847731,-500.0,0.00273972,120]
[358270236,1744885847742,-500.0,0.00273972,30]
[358270237,1744885847752,-500.0,0.00273972,120]
[358270238,1744885847762,-577.23455589,0.00273972,120]
[358270239,1744885847772,-500.0,0.00273972,120]
[358270240,1744885847781,-500.0,0.00273972,120]
[358270241,1744885847792,-500.0,0.00273972,120]
[358270242,1744885847802,-168.882587,0.00273972,120]
[358270243,1744885847812,-500.0,0.00273972,120]
[358270244,1744885847822,-500.0,0.00273972,120]
[358270245,1744885847831,-500.0,0.00273972,120]
[358270246,1744885847841,-500.0,0.00273972,120]
[358270247,1744885847851,-500.0,0.00273972,120]
[358270248,1744885847860,-500.0,0.00273972,120]
[358270249,1744885847870,-500.0,0.00273972,120]
[358270250,1744885847880,-500.0,0.00273972,120]
[358270251,1744885847889,-500.0,0.00273972,120]
[358270252,1744885847899,-500.0,0.00273972,120]
[358270253,1744885847908,-604.51786826,0.00273972,120]
[358270254,1744885847917,-500.0,0.00273972,120]
[358270255,1744885847926,-2975.178558,0.00273972,120]
[358270256,1744885847936,-430.23203876,0.00273972,120]
[358270257,1744885847945,-500.0,0.00273972,120]
[358270258,1744885847955,-500.0,0.00273972,120]
[358270259,1744885847964,-500.0,0.00273972,120]
[358270260,1744885847973,-500.0,0.00273972,120]
[358270261,1744885847983,-500.0,0.00273972,120]
[358270262,1744885847993,-2019.82409034,0.00273972,2]
[358270263,1744885848002,-517.3283485,0.00273972,120]
[358270264,1744885848012,-500.0,0.00273972,120]
[358270265,1744885848021,-500.0,0.00273972,120]
[358270266,1744885848031,-500.0,0.00273972,120]
[358270267,1744885848042,-500.0,0.00273972,120]
[358270268,1744885848052,-1001.0,0.002858,120]
[358270269,1744885848062,-5990.32,0.00286,120]
[358270270,1744885848073,-575.21109322,0.00291132,90]
[358270271,1744885848084,-47559.7074808,0.00291603,90]
[358270272,1744885848094,-500.0,0.0029863,120]
[358270273,1744885848104,-500.0,0.0029863,120]
[358270274,1744885848114,-500.0,0.0029863,120]
[358270275,1744885848123,-500.0,0.0029863,120]
[358270276,1744885848133,-500.0,0.0029863,120]
[358270277,1744885848143,-500.0,0.0029863,120]
[358270278,1744885848152,-500.0,0.0029863,120]
[358270279,1744885848162,-500.0,0.0029863,120]
[358270280,1744885848172,-500.0,0.0029863,120]
[358270281,1744885848182,-500.0,0.0029863,120]
[358270282,1744885848191,-500.0,0.0029863,120]
[358270283,1744885848201,-500.0,0.0029863,120]
[358270284,1744885848211,-500.0,0.0029863,120]
[358270285,1744885848221,-500.0,0.0029863,120]
[358270286,1744885848231,-500.0,0.0029863,120]
[358270287,1744885848243,-500.0,0.0029863,120]
[358270288,1744885848254,-500.0,0.0029863,120]
[358270289,1744885848264,-273.40777574,0.0029863,120]
[358270290,1744885848274,-500.0,0.0029863,120]
[358270291,1744885848285,-500.0,0.0029863,120]
[358270292,1744885848296,-500.0,0.0029863,120]
[358270293,1744885848306,-500.0,0.0029863,120]
[358270294,1744885848316,-500.0,0.0029863,120]
[358270295,1744885848327,-500.0,0.0029863,120]
[358270296,1744885848338,-500.0,0.0029863,120]
[358270297,1744885848347,-500.0,0.0029863,120]
[358270298,1744885848357,-500.0,0.0029863,120]
[358270299,1744885848367,-500.0,0.0029863,120]
[358270300,1744885848376,-500.0,0.0029863,120]
[358270301,1744885848387,-500.0,0.0029863,120]
[358270302,1744885848397,-504.60525841,0.0029863,120]
[358270303,1744885848407,-500.0,0.0029863,120]
[358270304,1744885848416,-500.0,0.0029863,120]
[358270305,1744885848426,-205.18,0.0029863,120]
[358270306,1744885848436,-1295.94,0.0029863,7]
[358270307,1744885848446,-500.0,0.0029863,120]
[358270308,1744885848455,-1048.81,0.0029863,120]
[358270309,1744885848465,-500.0,0.0029863,120]
[358270310,1744885848475,-500.0,0.0029863,120]
[358270311,1744885848485,-515.52,0.0029863,120]
[358270312,1744885848495,-500.0,0.0029863,120]
[358270313,1744885848505,-500.0,0.0029863,120]
[358270314,1744885848515,-500.0,0.0029863,120]
[358270315,1744885848525,-500.0,0.0029863,120]
[358270316,1744885848535,-500.0,0.0029863,120]
[358270317,1744885848545,-500.0,0.0029863,120]
[358270318,1744885848555,-552.40630244,0.0029863,120]
[358270319,1744885848565,-500.0,0.0029863,120]
[358270320,1744885848575,-500.0,0.0029863,120]
[358270321,1744885848586,-500.0,0.0029863,120]
[358270322,1744885848596,-500.0,0.0029863,120]
[358270323,1744885848606,-500.0,0.0029863,120]
[358270324,1744885848617,-500.0,0.0029863,120]
[358270325,1744885848627,-500.0,0.0029863,120]
[358270326,1744885848637,-500.0,0.0029863,120]
[358270327,1744885848647,-500.0,0.0029863,120]
[358270328,1744885848657,-500.0,0.0029863,120]
[358270329,1744885848666,-500.0,0.0029863,120]
[358270330,1744885848676,-500.0,0.0029863,120]
[358270331,1744885848686,-500.0,0.0029863,120]
[358270332,1744885848696,-230.87,0.0029863,120]
[358270333,1744885848707,-500.0,0.0029863,120]
[358270334,1744885848717,-500.0,0.0029863,120]
[358270335,1744885848728,-530.94546063,0.0029863,120]
[358270336,1744885848738,-500.0,0.0029863,120]
[358270337,1744885848750,-500.0,0.0029863,120]
[358270338,1744885848760,-500.0,0.0029863,120]
[358270339,1744885848770,-2000.0,0.0029863,120]
[358270340,1744885848780,-500.0,0.0029863,120]
[358270341,1744885848791,-500.0,0.0029863,30]
[358270342,1744885848801,-500.0,0.0029863,120]
[358270343,1744885848811,-500.0,0.0029863,120]
[358270344,1744885848822,-500.0,0.0029863,120]
[358270345,1744885848834,-500.0,0.0029863,120]
[358270346,1744885848845,-500.0,0.0029863,120]
[358270347,1744885848857,-500.0,0.0029863,120]
[358270348,1744885848870,-2975.178558,0.0029863,120]
[358270349,1744885848882,-612.85,0.0029863,120]
[358270350,1744885848893,-500.0,0.0029863,120]
[358270351,1744885848903,-531.62210074,0.0029863,120]
[358270352,1744885848914,-500.0,0.0029863,120]
[358270353,1744885848924,-500.0,0.0029863,120]
[358270354,1744885848934,-500.0,0.0029863,120]
[358270355,1744885848944,-4990.26200097,0.003,120]
[358270356,1744885848954,-1000.0,0.003,120]
[358270357,1744885848964,-503.83629314,0.00301611,120]
[358270358,1744885848974,-500.0,0.00317182,120]
[358270359,1744885848984,-507.6742836,0.0032,120]
[358270360,1744885848994,-3732.0,0.00323208,120]
[358270361,1744885849004,-500.0,0.00323287,120]
[358270362,1744885849014,-500.0,0.00323287,120]
[358270363,1744885849023,-251.31,0.00323287,120]
[358270364,1744885849033,-500.0,0.00323287,120]
[358270365,1744885849045,-500.0,0.00323287,120]
[358270366,1744885849055,-580.71,0.00323287,120]
[358270367,1744885849065,-509.05605198,0.00323287,120]
[358270368,1744885849075,-500.0,0.00323287,120]
[358270369,1744885849085,-500.0,0.00323287,120]
[358270370,1744885849096,-500.0,0.00323287,120]
[358270371,1744885849105,-500.0,0.00323287,120]
[358270372,1744885849115,-500.0,0.00323287,120]
[358270373,1744885849126,-486.23,0.00323287,120]
[358270374,1744885849136,-500.0,0.00323287,120]
[358270375,1744885849145,-500.0,0.00323287,120]
[358270376,1744885849155,-1295.94,0.00323287,7]
[358270377,1744885849164,-1048.81,0.00323287,120]
[358270378,1744885849175,-500.0,0.00323287,120]
[358270379,1744885849185,-515.52,0.00323287,120]
[358270380,1744885849194,-500.0,0.00323287,120]
[358270381,1744885849204,-538.30765339,0.00323287,120]
[358270382,1744885849214,-500.0,0.00323287,120]
[358270383,1744885849224,-339.51,0.00323287,120]
[358270384,1744885849234,-500.0,0.00323287,120]
[358270385,1744885849245,-500.0,0.00323287,120]